[Event "79th Armenian-HL-ch Women 2024"]
[Site "Yerevan"]
[Date "2024.01.16"]
[Round "5.3"]
[White "Gasparyan, Milena"]
[Black "Gaboyan, Susanna"]
[Result "1/2-1/2"]
[ECO "B28"]
[WhiteElo "1802"]
[BlackElo "2179"]
[Annotator "NA RC"]
[PlyCount "140"]
[EventDate "2024.01.11"]
[EventType "tourn"]
[EventCountry "ARM"]
[SourceTitle "playchess.com"]
[Source "ChessBase"]
[SourceQuality "1"]
[TimeControl "40/5400+30:1800+30"]

1. e4 {[%emt 0:00:05]} c5 {[%emt 0:00:05]} 2. Nf3 {[%emt 0:00:09]} a6 {[%emt 0:00:07]} 3. d4 {[%emt 0:00:17]} cxd4 {[%emt 0:02:13]} 4. Nxd4 {[%emt 0:00:06]} d5 {[%emt 0:03:00]} 5. exd5 {[%emt 0:03:45]} Qxd5 {[%emt 0:00:25]} 6. Nc3 {[%emt 0:00:09]} Qd6 {[%emt 0:02:20]} 7. Be2 {[%emt 0:01:57]} e5 {[%emt 0:00:37]} 8. Nb3 {[%emt 0:01:07]} Qxd1+ {[%emt 0:19:09]} 9. Bxd1 {[%emt 0:00:16]} Nf6 {[%emt 0:00:23]} 10. Bf3 {[%emt 0:08:40]} Nc6 {[%emt 0:00:58]} 11. Be3 {[%emt 0:01:10]} Bb4 {[%emt 0:01:36]} 12. Bd2 {[%emt 0:05:09]} Bf5 {[%emt 0:02:57]} 13. O-O-O {[%emt 0:00:52]} O-O {[%emt 0:02:04]} 14. Nd5 {[%emt 0:11:53]} Nxd5 {[%emt 0:02:35]} 15. Bxd5 {[%emt 0:00:10]} Rac8 {[%emt 0:01:22]} 16. a3 {[%emt 0:08:13]} Be7 {[%emt 0:24:59]} 17. c3 {[%emt 0:13:58]} Nd4 {[%emt 0:07:53]} 18. Rde1 {[%emt 0:05:56]} Bf6 {[%emt 0:01:43]} 19. Nxd4 {[%emt 0:08:49]} exd4 {[%emt 0:00:10]} 20. Bxb7 {[%emt 0:00:20]} dxc3 {[%emt 0:01:59]} 21. bxc3 {[%emt 0:00:13]} Rc4 {[%emt 0:05:24]} 22. f3 {[%emt 0:09:08]} Bxc3 {[%emt 0:00:38]} 23. Bxc3 {[%emt 0:00:52]} Rxc3+ {[%emt 0:00:12]} 24. Kd2 {[%emt 0:00:05]} Rxa3 {[%emt 0:01:20]} 25. Ra1 {[%emt 0:01:24]} Rb3 {[%emt 0:07:31]} 26. Bxa6 {[%emt 0:01:45]} Rb2+ {[%emt 0:00:09]} 27. Ke3 {[%emt 0:00:13]} Rxg2 {[%emt 0:00:07]} 28. Bb7 {[%emt 0:05:03]} Re8+ {[%emt 0:01:22]} 29. Kf4 {[%emt 0:00:28]} Bc2 {[%emt 0:03:42]} 30. h4 {[%emt 0:03:41]} h6 {[%emt 0:00:40]} 31. h5 {[%emt 0:00:20]} Kh7 {[%emt 0:04:21]} 32. Ra2 {[%emt 0:02:01]} Ree2 {[%emt 0:02:11]} 33. Bd5 {[%emt 0:01:12]} g5+ {[%emt 0:01:50]} 34. hxg6+ {[%emt 0:00:06]} Bxg6 {[%emt 0:00:08]} 35. Rxe2 {[%emt 0:01:53]} Rxe2 {[%emt 0:00:02]} 36. Be4 {[%emt 0:00:08]} Kg7 {[%emt 0:01:25]} 37. Rc1 {[%emt 0:02:57]} h5 {[%emt 0:00:33]} 38. Kg5 {[%emt 0:01:55]} Bxe4 {[%emt 0:00:46]} 39. fxe4 {[%emt 0:00:05]} Rxe4 {[%emt 0:00:30]} 40. Kxh5 {[%emt 0:00:00]} Kf6 {[%emt 0:00:00]} 41. Rf1+ {[%emt 0:00:30]} Ke6 {[%emt 0:00:49]} 42. Kg5 {[%emt 0:00:09]} Re5+ {[%emt 0:04:36]} 43. Kg4 {[%emt 0:00:13]} Rb5 {[%emt 0:00:20]} 44. Re1+ {[%emt 0:07:27]} Kf6 {[%emt 0:00:34]} 45. Re4 {[%emt 0:02:36]} Kg6 {[%emt 0:00:27]} 46. Ra4 {[%emt 0:00:18]} Rb1 {[%emt 0:00:22]} 47. Ra6+ {[%emt 0:01:49]} f6 {[%emt 0:00:10]} 48. Ra4 {[%emt 0:00:06]} f5+ {[%emt 0:01:01]} 49. Kf4 {[%emt 0:01:08]} Rf1+ {[%emt 0:00:11]} 50. Kg3 {[%emt 0:01:35]} Kg5 {[%emt 0:00:25]} 51. Ra8 {[%emt 0:00:51]} Rb1 {[%emt 0:03:07]} 52. Rg8+ {[%emt 0:00:21]} Kf6 {[%emt 0:00:02]} 53. Rf8+ {[%emt 0:00:11]} Ke6 {[%emt 0:00:14]} 54. Re8+ {[%emt 0:00:39]} Kf7 {[%emt 0:00:07]} 55. Re5 {[%emt 0:00:15]} Kf6 {[%emt 0:00:10]} 56. Re8 {[%emt 0:00:08]} Rg1+ {[%emt 0:04:15]} 57. Kf3 {[%emt 0:00:56]} Rf1+ {[%emt 0:01:00]} 58. Kg2 {[%emt 0:00:50]} Ra1 {[%emt 0:01:14]} 59. Kf3 {[%emt 0:00:10]} Ra3+ {[%emt 0:00:22]} 60. Kf4 {[%emt 0:00:40]} Ra4+ {[%emt 0:00:03]} 61. Kf3 {[%emt 0:00:00]} Kf7 {[%emt 0:00:45]} 62. Re5 {[%emt 0:00:00]} Kg6 {[%emt 0:00:16]} 63. Re8 {[%emt 0:00:12]} Ra6 {[%emt 0:03:23]} 64. Rg8+ {[%emt 0:01:38]} Kf7 {[%emt 0:00:27]} 65. Rb8 {[%emt 0:00:19]} Ra4 {[%emt 0:02:14]} 66. Rc8 {[%emt 0:00:10]} Rd4 {[%emt 0:01:13]} 67. Ra8 {[%emt 0:00:28]} Ke6 {[%emt 0:00:45]} 68. Re8+ {[%emt 0:00:11]} Kf7 {[%emt 0:01:16]} 69. Ra8 {[%emt 0:00:05]} Ke6 {[%emt 0:00:36]} 70. Re8+ {[%emt 0:00:05]} Kf7 {[%emt 0:00:04]} 1/2-1/2

[Event "79th Armenian-HL-ch Women 2024"]
[Site "Yerevan"]
[Date "2024.01.16"]
[Round "5.4"]
[White "Gevorgyan, Maria"]
[Black "Grigoryan, Arpine"]
[Result "1/2-1/2"]
[ECO "A47"]
[WhiteElo "2272"]
[BlackElo "2025"]
[Annotator "NA RC"]
[PlyCount "152"]
[EventDate "2024.01.11"]
[EventType "tourn"]
[EventCountry "ARM"]
[SourceTitle "playchess.com"]
[Source "ChessBase"]
[SourceQuality "1"]
[TimeControl "40/5400+30:1800+30"]

1. d4 {[%emt 0:00:03]} Nf6 {[%emt 0:00:11]} 2. Nf3 {[%emt 0:00:10]} e6 {[%emt 0:00:31]} 3. Bf4 {[%emt 0:00:19]} b6 {[%emt 0:01:26]} 4. c3 {[%emt 0:00:52]} Bb7 {[%emt 0:00:37]} 5. e3 {[%emt 0:00:33]} Bd6 {[%emt 0:00:17]} 6. Bxd6 {[%emt 0:03:30]} cxd6 {[%emt 0:00:05]} 7. Nbd2 {[%emt 0:00:10]} d5 {[%emt 0:03:10]} 8. Bd3 {[%emt 0:01:14]} O-O {[%emt 0:01:58]} 9. Qc2 {[%emt 0:05:18]} d6 {[%emt 0:03:38]} 10. g4 {[%emt 0:08:40]} Ba6 {[%emt 0:07:21]} 11. g5 {[%emt 0:00:40]} Bxd3 {[%emt 0:00:36]} 12. Qxd3 {[%emt 0:00:06]} Ne8 {[%emt 0:03:28]} 13. h4 {[%emt 0:03:32]} Nc6 {[%emt 0:05:18]} 14. h5 {[%emt 0:02:25]} Rc8 {[%emt 0:04:09]} 15. O-O-O {[%emt 0:11:50]} e5 {[%emt 0:09:37]} 16. Qf5 $16 {[%emt 0:08:46]} Ne7 {[%emt 0:13:17]} 17. Qg4 {[%emt 0:02:39]} e4 {[%emt 0:00:16]} 18. Nh4 {[%emt 0:00:05]} Rc7 {[%emt 0:12:19]} 19. g6 {[%emt 0:04:16]} fxg6 {[%emt 0:03:02]} 20. Qe6+ {[%emt 0:00:35]} Kh8 {[%emt 0:06:58]} 21. Nxg6+ {[%emt 0:01:03]} Nxg6 {[%emt 0:00:04]} 22. hxg6 {[%emt 0:00:06]} h6 {[%emt 0:00:02]} 23. Qxd5 {[%emt 0:00:41]} Nf6 {[%emt 0:00:08]} 24. Qg5 {[%emt 0:03:27]} Kg8 {[%emt 0:02:25]} 25. Qf5 {[%emt 0:07:04]} d5 {[%emt 0:00:37]} 26. f3 {[%emt 0:05:42]} Re7 {[%emt 0:06:15]} 27. Rdf1 {[%emt 0:05:25]} exf3 {[%emt 0:05:44]} 28. Qxf3 {[%emt 0:03:08]} Ne4 {[%emt 0:00:31]} 29. Qg2 {[%emt 0:02:32]} Rxf1+ {[%emt 0:01:14]} 30. Rxf1 {[%emt 0:00:13]} Ng5 {[%emt 0:01:23]} 31. Rf5 {[%emt 0:05:45]} Rxe3 {[%emt 0:04:17]} 32. Rxd5 {[%emt 0:02:44]} Re1+ {[%emt 0:01:27]} 33. Kc2 {[%emt 0:00:05]} Qf6 {[%emt 0:00:30]} 34. Rxg5 {[%emt 0:01:05]} hxg5 {[%emt 0:00:06]} 35. Qa8+ {[%emt 0:00:03]} Qf8 {[%emt 0:00:04]} 36. Qd5+ {[%emt 0:00:04]} Kh8 {[%emt 0:00:02]} 37. Qxg5 {[%emt 0:02:56]} Qf6 {[%emt 0:01:17]} 38. Qg4 {[%emt 0:00:19]} Re6 {[%emt 0:00:35]} 39. Qh5+ {[%emt 0:02:19]} Kg8 {[%emt 0:00:04]} 40. Qh7+ {[%emt 0:00:00]} Kf8 {[%emt 0:00:00]} 41. Qh8+ {[%emt 0:00:10]} Ke7 {[%emt 0:00:12]} 42. Kb3 {[%emt 0:04:35]} Re2 {[%emt 0:11:56]} 43. Nc4 {[%emt 0:01:18]} b5 {[%emt 0:03:34]} 44. Na5 {[%emt 0:01:00]} Qxg6 {[%emt 0:02:05]} 45. Ka3 {[%emt 0:08:16]} Qd6+ {[%emt 0:08:36]} 46. Kb3 {[%emt 0:02:43]} Qe6+ {[%emt 0:00:30]} 47. Ka3 {[%emt 0:00:09]} Qd6+ {[%emt 0:00:18]} 48. Kb3 {[%emt 0:03:04]} Qe6+ {[%emt 0:00:31]} 49. c4 {[%emt 0:05:03]} Qe3+ {[%emt 0:01:08]} 50. Kb4 {[%emt 0:00:06]} Rxb2+ {[%emt 0:00:34]} 51. Nb3 {[%emt 0:03:18]} Qxd4 {[%emt 0:01:58]} 52. Ka3 {[%emt 0:00:02]} Rxb3+ {[%emt 0:03:26]} 53. axb3 {[%emt 0:00:15]} bxc4 {[%emt 0:00:20]} 54. bxc4 {[%emt 0:00:05]} Qc3+ {[%emt 0:00:05]} 55. Ka2 {[%emt 0:00:16]} Qxc4+ {[%emt 0:00:05]} 56. Kb2 {[%emt 0:00:16]} Qd4+ {[%emt 0:00:34]} 57. Kb3 {[%emt 0:00:05]} a5 {[%emt 0:00:43]} 58. Qc8 {[%emt 0:00:41]} Qd5+ {[%emt 0:00:50]} 59. Ka3 {[%emt 0:00:45]} a4 {[%emt 0:01:03]} 60. Qc7+ {[%emt 0:00:28]} Ke6 {[%emt 0:01:34]} 61. Qc8+ {[%emt 0:00:05]} Qd7 {[%emt 0:00:45]} 62. Qc4+ {[%emt 0:00:18]} Ke7 {[%emt 0:00:36]} 63. Qe4+ {[%emt 0:00:30]} Kf7 {[%emt 0:00:47]} 64. Qf4+ {[%emt 0:00:15]} Ke8 {[%emt 0:00:17]} 65. Qb8+ {[%emt 0:00:16]} Kf7 {[%emt 0:00:32]} 66. Qf4+ {[%emt 0:00:06]} Kg6 {[%emt 0:00:15]} 67. Qg3+ {[%emt 0:00:22]} Kh6 {[%emt 0:00:53]} 68. Qh4+ {[%emt 0:00:05]} Kg6 {[%emt 0:00:03]} 69. Qg3+ {[%emt 0:00:06]} Kh5 {[%emt 0:00:38]} 70. Qh2+ {[%emt 0:00:06]} Kg5 {[%emt 0:00:23]} 71. Qe5+ {[%emt 0:00:45]} Kh4 {[%emt 0:00:18]} 72. Qe1+ {[%emt 0:00:08]} Kh5 {[%emt 0:00:41]} 73. Qh1+ {[%emt 0:00:15]} Kg5 {[%emt 0:00:22]} 74. Qc1+ {[%emt 0:00:45]} Kg4 {[%emt 0:01:05]} 75. Qg1+ {[%emt 0:00:21]} Kh5 {[%emt 0:01:01]} 76. Qh2+ {[%emt 0:00:18]} Kg6 {[%emt 0:00:11]} 1/2-1/2

[Event "79th Armenian-HL-ch Women 2024"]
[Site "Yerevan"]
[Date "2024.01.16"]
[Round "5.5"]
[White "Stepanyan, Alvard"]
[Black "Avetisyan, Mariam"]
[Result "1/2-1/2"]
[ECO "D42"]
[WhiteElo "1514"]
[BlackElo "2043"]
[Annotator "NA RC"]
[PlyCount "140"]
[EventDate "2024.01.11"]
[EventType "tourn"]
[EventCountry "ARM"]
[SourceTitle "playchess.com"]
[Source "ChessBase"]
[SourceQuality "1"]
[TimeControl "40/5400+30:1800+30"]

1. e4 {[%emt 0:00:16]} c6 {[%emt 0:01:42]} 2. d4 {[%emt 0:00:07]} d5 {[%emt 0:00:03]} 3. exd5 {[%emt 0:00:08]} cxd5 {[%emt 0:00:04]} 4. c4 {[%emt 0:00:06]} e6 {[%emt 0:00:23]} 5. Nc3 {[%emt 0:00:10]} Nf6 {[%emt 0:00:48]} 6. Nf3 {[%emt 0:00:20]} Be7 {[%emt 0:00:47]} 7. cxd5 {[%emt 0:04:45]} Nxd5 {[%emt 0:02:24]} 8. Bd3 {[%emt 0:00:41]} Nc6 {[%emt 0:00:41]} 9. O-O {[%emt 0:01:03]} Bf6 {[%emt 0:09:20]} 10. Ne4 {[%emt 0:08:43]} Bxd4 {[%emt 0:16:36]} 11. Nxd4 {[%emt 0:06:07]} Nxd4 {[%emt 0:00:11]} 12. Bg5 {[%emt 0:00:56]} Qb6 {[%emt 0:23:21]} 13. Qh5 $11 {[%emt 0:13:08]} Bd7 {[%emt 0:10:47]} 14. Rad1 {[%emt 0:03:12]} Kf8 {[%emt 0:06:30]} 15. Bc4 {[%emt 0:08:18]} f6 {[%emt 0:10:04]} 16. Bxd5 {[%emt 0:19:48]} exd5 {[%emt 0:00:22]} 17. Nxf6 {[%emt 0:01:30]} gxf6 {[%emt 0:00:03]} 18. Be3 {[%emt 0:02:27]} Qe6 {[%emt 0:06:16]} 19. Bxd4 {[%emt 0:00:49]} Re8 {[%emt 0:03:33]} 20. Bc5+ {[%emt 0:01:30]} Kg7 {[%emt 0:00:26]} 21. Rd3 {[%emt 0:02:50]} Rhg8 {[%emt 0:00:50]} 22. Rh3 {[%emt 0:12:10]} Qf5 {[%emt 0:01:37]} 23. Qh6+ {[%emt 0:03:31]} Kh8 {[%emt 0:00:41]} 24. Bd4 {[%emt 0:00:31]} Re6 {[%emt 0:00:51]} 25. Rg3 {[%emt 0:00:41]} a6 {[%emt 0:00:57]} 26. h4 {[%emt 0:01:04]} Be8 {[%emt 0:00:55]} 27. Rg5 {[%emt 0:00:44]} Rxg5 {[%emt 0:00:48]} 28. hxg5 {[%emt 0:00:05]} Kg8 {[%emt 0:00:40]} 29. Bxf6 {[%emt 0:03:19]} Qg6 {[%emt 0:00:06]} 30. Qh3 {[%emt 0:01:29]} Bd7 {[%emt 0:00:49]} 31. Qg3 {[%emt 0:00:46]} h6 {[%emt 0:00:29]} 32. Qb8+ {[%emt 0:00:43]} Qe8 {[%emt 0:00:51]} 33. Qxb7 {[%emt 0:00:53]} hxg5 {[%emt 0:00:18]} 34. Bc3 {[%emt 0:00:18]} d4 {[%emt 0:01:51]} 35. Bxd4 {[%emt 0:00:21]} Qf7 {[%emt 0:00:31]} 36. Qb8+ {[%emt 0:00:28]} Re8 {[%emt 0:00:25]} 37. Qg3 {[%emt 0:00:09]} Qd5 {[%emt 0:00:30]} 38. Be3 {[%emt 0:01:06]} g4 {[%emt 0:00:08]} 39. Rc1 {[%emt 0:00:50]} Re7 {[%emt 0:00:36]} 40. Qb8+ {[%emt 0:00:00]} Re8 {[%emt 0:00:00]} 41. Qf4 {[%emt 0:09:02]} Re4 {[%emt 0:11:11]} 42. Qb8+ {[%emt 0:06:01]} Re8 {[%emt 0:04:54]} 43. Qb6 {[%emt 0:05:10]} Re6 {[%emt 0:02:24]} 44. Qd8+ {[%emt 0:02:03]} Re8 {[%emt 0:00:27]} 45. Qg5+ {[%emt 0:05:34]} Qxg5 {[%emt 0:00:04]} 46. Bxg5 {[%emt 0:00:03]} Re2 {[%emt 0:00:17]} 47. Bf6 {[%emt 0:00:37]} Be6 {[%emt 0:00:14]} 48. a3 {[%emt 0:02:08]} a5 {[%emt 0:03:27]} 49. Rc7 {[%emt 0:07:15]} a4 {[%emt 0:03:34]} 50. Ra7 {[%emt 0:00:04]} Re4 {[%emt 0:00:11]} 51. Bc3 {[%emt 0:00:13]} Bb3 {[%emt 0:01:07]} 52. Kh2 {[%emt 0:00:14]} Kf8 {[%emt 0:00:43]} 53. Kg3 {[%emt 0:00:12]} Ke8 {[%emt 0:00:14]} 54. Rb7 {[%emt 0:00:53]} Bd1 {[%emt 0:01:34]} 55. Rb4 {[%emt 0:00:48]} Re7 {[%emt 0:00:49]} 56. Rd4 {[%emt 0:00:50]} Rd7 {[%emt 0:00:04]} 57. Rxd1 {[%emt 0:01:16]} Rxd1 {[%emt 0:00:05]} 58. Kxg4 {[%emt 0:00:04]} Kf7 {[%emt 0:02:02]} 59. f4 {[%emt 0:00:17]} Rg1 {[%emt 0:00:07]} 60. g3 {[%emt 0:00:20]} Kg6 {[%emt 0:01:38]} 61. f5+ {[%emt 0:00:10]} Kf7 {[%emt 0:00:06]} 62. Kf4 {[%emt 0:00:05]} Rf1+ {[%emt 0:00:14]} 63. Kg5 {[%emt 0:00:20]} Rf3 {[%emt 0:01:23]} 64. g4 {[%emt 0:00:32]} Rf1 {[%emt 0:00:03]} 65. Kh4 {[%emt 0:01:00]} Rf3 {[%emt 0:00:47]} 66. Kg5 {[%emt 0:00:36]} Rf1 {[%emt 0:00:04]} 67. f6 {[%emt 0:00:33]} Rf3 {[%emt 0:00:48]} 68. Kh5 {[%emt 0:00:44]} Rh3+ {[%emt 0:00:05]} 69. Kg5 {[%emt 0:00:03]} Rf3 {[%emt 0:00:04]} 70. Kh5 {[%emt 0:01:17]} Rh3+ {[%emt 0:00:18]} 1/2-1/2

[Event "79th Armenian-HL-ch Women 2024"]
[Site "Yerevan"]
[Date "2024.01.17"]
[Round "6.1"]
[White "Grigoryan, Arpine"]
[Black "Kobak, Polina"]
[Result "1/2-1/2"]
[ECO "B30"]
[WhiteElo "2025"]
[BlackElo "2120"]
[Annotator "RC"]
[PlyCount "88"]
[EventDate "2024.01.11"]
[EventType "tourn"]
[EventCountry "ARM"]
[SourceTitle "playchess.com"]
[Source "ChessBase"]
[SourceQuality "1"]
[TimeControl "40/5400+30:1800+30"]

1. e4 {[%emt 0:00:03]} c5 {[%emt 0:00:04]} 2. Nf3 {[%emt 0:00:07]} Nc6 {[%emt 0:00:06]} 3. Bb5 {[%emt 0:01:17]} e6 {[%emt 0:00:07]} 4. O-O {[%emt 0:00:37]} Nge7 {[%emt 0:00:07]} 5. d4 {[%emt 0:00:43]} cxd4 {[%emt 0:00:08]} 6. Nxd4 {[%emt 0:00:20]} Ng6 {[%emt 0:00:17]} 7. Nxc6 {[%emt 0:02:53]} bxc6 {[%emt 0:02:23]} 8. Bd3 {[%emt 0:01:48]} Be7 {[%emt 0:08:31]} 9. c4 {[%emt 0:03:33]} O-O {[%emt 0:00:07]} 10. Nc3 {[%emt 0:01:07]} Bb7 {[%emt 0:03:36]} 11. Be3 {[%emt 0:08:48]} c5 {[%emt 0:07:11]} 12. f4 {[%emt 0:22:29]} Rb8 {[%emt 0:12:09]} 13. Qd2 {[%emt 0:05:45]} Bc6 {[%emt 0:15:22]} 14. b3 {[%emt 0:09:50]} Qb6 {[%emt 0:09:22]} 15. Qf2 {[%emt 0:09:50]} d6 {[%emt 0:02:17]} 16. Rac1 {[%emt 0:02:10]} Qb7 {[%emt 0:06:22]} 17. Qc2 {[%emt 0:08:18]} Bf6 {[%emt 0:06:00]} 18. Nd1 {[%emt 0:07:46]} a5 {[%emt 0:00:27]} 19. Bd2 {[%emt 0:01:15]} Bd4+ {[%emt 0:01:44]} 20. Be3 {[%emt 0:00:05]} f5 {[%emt 0:08:37]} 21. exf5 {[%emt 0:00:27]} Nh4 {[%emt 0:00:16]} 22. Rf2 {[%emt 0:02:28]} Nxf5 {[%emt 0:01:32]} 23. Bxd4 {[%emt 0:00:26]} cxd4 {[%emt 0:00:50]} 24. c5 {[%emt 0:01:00]} dxc5 {[%emt 0:01:18]} 25. Qxc5 {[%emt 0:00:13]} Bd5 {[%emt 0:05:24]} 26. Bxf5 {[%emt 0:00:31]} Rbc8 {[%emt 0:00:36]} 27. Bxe6+ {[%emt 0:00:29]} Bxe6 {[%emt 0:00:04]} 28. Qa3 {[%emt 0:00:02]} Qe4 {[%emt 0:01:38]} 29. Rxc8 {[%emt 0:01:52]} Rxc8 {[%emt 0:00:01]} 30. Qxa5 {[%emt 0:01:18]} Rc1 {[%emt 0:03:02]} 31. Rf1 {[%emt 0:02:42]} Bd5 {[%emt 0:03:53]} 32. Qd8+ {[%emt 0:00:10]} Kf7 {[%emt 0:00:04]} 33. Qd7+ {[%emt 0:01:28]} Kg8 {[%emt 0:00:29]} 34. Qd8+ {[%emt 0:00:36]} Kf7 {[%emt 0:00:04]} 35. Qg5 {[%emt 0:00:24]} d3 {[%emt 0:00:33]} 36. Qh5+ {[%emt 0:01:21]} Kf8 {[%emt 0:00:09]} 37. Qf3 {[%emt 0:00:18]} Qe2 {[%emt 0:02:09]} 38. Qxd5 {[%emt 0:01:12]} Rxd1 {[%emt 0:00:05]} 39. Qf5+ {[%emt 0:00:50]} Kg8 {[%emt 0:00:57]} 40. Qd5+ {[%emt 0:00:00]} Kf8 {[%emt 0:00:00]} 41. Qf5+ {[%emt 0:09:15]} Kg8 {[%emt 0:04:52]} 42. Qd5+ {[%emt 0:00:48]} Kf8 {[%emt 0:00:05]} 43. Qf5+ {[%emt 0:00:03]} Kg8 {[%emt 0:00:05]} 44. Qd5+ {[%emt 0:00:16]} Kf8 {[%emt 0:00:05]} 1/2-1/2

[Event "79th Armenian-HL-ch Women 2024"]
[Site "Yerevan"]
[Date "2024.01.17"]
[Round "6.2"]
[White "Stepanyan, Alvard"]
[Black "Gasparyan, Milena"]
[Result "1-0"]
[ECO "B15"]
[WhiteElo "1514"]
[BlackElo "1802"]
[Annotator "NA COMBH"]
[PlyCount "89"]
[EventDate "2024.01.11"]
[EventType "tourn"]
[EventCountry "ARM"]
[SourceTitle "playchess.com"]
[Source "ChessBase"]
[SourceQuality "1"]
[TimeControl "40/5400+30:1800+30"]

1. e4 {[%emt 0:00:08]} c6 {[%emt 0:00:07]} 2. d4 {[%emt 0:00:07]} d5 {[%emt 0:00:05]} 3. Nc3 {[%emt 0:00:05]} dxe4 {[%emt 0:00:11]} 4. Nxe4 {[%emt 0:00:05]} Nf6 {[%emt 0:00:30]} 5. Nxf6+ {[%emt 0:00:07]} exf6 {[%emt 0:00:04]} 6. Bc4 {[%emt 0:00:05]} Bd6 {[%emt 0:00:43]} 7. Qe2+ {[%emt 0:00:06]} Qe7 {[%emt 0:00:34]} 8. Qxe7+ {[%emt 0:00:07]} Kxe7 {[%emt 0:00:04]} 9. Ne2 {[%emt 0:00:06]} Bf5 {[%emt 0:00:39]} 10. c3 {[%emt 0:00:12]} Nd7 {[%emt 0:00:40]} 11. Bf4 {[%emt 0:02:26]} Be6 {[%emt 0:01:39]} 12. Bd3 {[%emt 0:06:00]} h5 {[%emt 0:03:04]} 13. Bxd6+ {[%emt 0:06:52]} Kxd6 {[%emt 0:00:12]} 14. O-O {[%emt 0:09:02]} h4 {[%emt 0:01:47]} 15. c4 {[%emt 0:00:36]} Rad8 {[%emt 0:03:06]} 16. Rfe1 {[%emt 0:01:07]} Kc7 {[%emt 0:01:45]} 17. b4 {[%emt 0:20:49]} h3 {[%emt 0:23:45]} 18. Nf4 {[%emt 0:13:45]} Nb6 $11 {[%emt 0:08:15]} 19. d5 {[%emt 0:08:05]} cxd5 {[%emt 0:00:27]} 20. c5 {[%emt 0:00:13]} Nd7 {[%emt 0:02:31]} 21. Rxe6 {[%emt 0:06:09]} fxe6 {[%emt 0:00:48]} 22. Nxe6+ {[%emt 0:00:05]} Kc8 {[%emt 0:01:26]} 23. Nxd8 {[%emt 0:00:26]} Kxd8 {[%emt 0:00:09]} 24. Bf5 {[%emt 0:03:09]} hxg2 {[%emt 0:02:13]} 25. Rd1 {[%emt 0:00:12]} Ne5 {[%emt 0:01:49]} 26. Kxg2 {[%emt 0:08:59]} Rh4 {[%emt 0:02:03]} 27. Rxd5+ {[%emt 0:01:59]} Kc7 {[%emt 0:03:40]} 28. a3 {[%emt 0:01:10]} Rf4 {[%emt 0:00:16]} 29. Bh3 {[%emt 0:01:05]} g5 {[%emt 0:07:38]} 30. Be6 {[%emt 0:01:47]} b6 {[%emt 0:01:13]} 31. cxb6+ {[%emt 0:00:59]} Kxb6 {[%emt 0:01:59]} 32. Rd8 {[%emt 0:02:10]} Rf3 {[%emt 0:06:48]} 33. Rd6+ {[%emt 0:04:19]} Kc7 {[%emt 0:01:56]} 34. Ra6 {[%emt 0:00:05]} Kb8 {[%emt 0:01:11]} 35. Ra5 {[%emt 0:01:29]} Rf4 {[%emt 0:00:36]} 36. Bd5 {[%emt 0:01:05]} Rd4 {[%emt 0:01:28]} 37. h3 {[%emt 0:01:07]} Rd3 {[%emt 0:20:21]} 38. Be4 {[%emt 0:01:07]} Rd4 {[%emt 0:00:15]} 39. f3 {[%emt 0:00:24]} Rd6 $2 {[%emt 0:00:48]} ({Better is} 39... Nc4 $1 $14 40. Rb5+ Kc7) 40. Rb5+ {[%emt 0:00:00]} Kc8 {[%emt 0:00:00]} 41. a4 {[%emt 0:08:05]} Rd4 {[%emt 0:03:59]} 42. a5 {[%emt 0:04:39]} Nc4 {[%emt 0:05:29]} 43. a6 {[%emt 0:04:38]} Rd2+ {[%emt 0:01:45]} 44. Kg1 {[%emt 0:02:21]} Nb6 {[%emt 0:05:46]} 45. Rxb6 {[%emt 0:00:36]} 1-0

[Event "79th Armenian-HL-ch Women 2024"]
[Site "Yerevan"]
[Date "2024.01.17"]
[Round "6.3"]
[White "Gaboyan, Susanna"]
[Black "Gevorgyan, Maria"]
[Result "1-0"]
[ECO "A00"]
[WhiteElo "2179"]
[BlackElo "2272"]
[Annotator "RC"]
[PlyCount "129"]
[EventDate "2024.01.11"]
[EventType "tourn"]
[EventCountry "ARM"]
[SourceTitle "playchess.com"]
[Source "ChessBase"]
[SourceQuality "1"]
[TimeControl "40/5400+30:1800+30"]

1. Nc3 {[%emt 0:00:29]} e5 {[%emt 0:05:06]} 2. Nf3 {[%emt 0:00:09]} Nc6 {[%emt 0:00:12]} 3. d4 {[%emt 0:00:05]} exd4 {[%emt 0:00:30]} 4. Nxd4 {[%emt 0:00:06]} Bc5 {[%emt 0:02:28]} 5. Be3 {[%emt 0:00:08]} Bxd4 {[%emt 0:08:59]} 6. Bxd4 {[%emt 0:00:18]} Nf6 {[%emt 0:00:05]} 7. g3 {[%emt 0:07:31]} d6 {[%emt 0:07:51]} 8. Bg2 {[%emt 0:00:18]} Be6 {[%emt 0:02:01]} 9. O-O {[%emt 0:02:44]} O-O {[%emt 0:02:54]} 10. h3 {[%emt 0:09:46]} Nxd4 {[%emt 0:01:45]} 11. Qxd4 {[%emt 0:00:12]} c5 {[%emt 0:00:08]} 12. Qf4 {[%emt 0:06:07]} d5 {[%emt 0:00:51]} 13. Rad1 {[%emt 1:09:07]} Qb6 {[%emt 1:04:10]} 14. b3 {[%emt 0:00:00]} Rad8 {[%emt 0:00:00]} 15. e4 {[%emt 0:00:00]} d4 {[%emt 0:00:00]} 16. Na4 {[%emt 0:00:00]} Qa5 {[%emt 0:00:00]} 17. Qd2 {[%emt 0:00:00]} Qc7 {[%emt 0:00:00]} 18. Nb2 {[%emt 0:00:00]} b5 {[%emt 0:00:00]} 19. Nd3 {[%emt 0:00:00]} Bc8 {[%emt 0:00:00]} 20. Qg5 {[%emt 0:00:00]} Nd7 {[%emt 0:00:00]} 21. b4 {[%emt 0:04:00]} c4 {[%emt 0:04:00]} 22. Nf4 {[%emt 0:00:00]} Qe5 23. Qxe5 {[%emt 0:01:00]} Nxe5 {[%emt 0:00:00]} 24. Nd5 {[%emt 0:00:30]} Nc6 {[%emt 0:00:00]} 25. g4 {[%emt 0:00:00]} Be6 {[%emt 0:00:00]} 26. a3 {[%emt 0:00:00]} a5 {[%emt 0:00:00]} 27. f4 {[%emt 0:00:00]} axb4 {[%emt 0:00:00]} 28. Nxb4 {[%emt 0:00:00]} Nxb4 {[%emt 0:00:00]} 29. axb4 {[%emt 0:00:00]} c3 {[%emt 0:00:00]} 30. Rf3 {[%emt 0:00:00]} Bc4 {[%emt 0:00:00]} 31. Bf1 {[%emt 0:00:00]} Rfe8 {[%emt 0:00:00]} 32. e5 {[%emt 0:00:00]} Kf8 {[%emt 0:00:00]} 33. Bd3 {[%emt 0:00:00]} Rc8 {[%emt 0:00:00]} 34. Kf2 {[%emt 0:00:00]} Red8 {[%emt 0:00:00]} 35. Be4 {[%emt 0:00:00]} g6 {[%emt 0:00:00]} 36. Rg3 {[%emt 0:00:00]} Ke7 {[%emt 0:00:00]} 37. Ra1 {[%emt 0:01:36]} Rc7 {[%emt 0:00:35]} 38. Bd3 {[%emt 0:01:37]} Ke6 {[%emt 0:03:57]} 39. Ra6+ {[%emt 0:02:24]} Kd5 {[%emt 0:01:14]} 40. Ke2 {[%emt 0:00:00]} Bxd3+ {[%emt 0:00:00]} 41. Kxd3 {[%emt 0:00:31]} Rc4 {[%emt 0:04:43]} 42. Rg1 {[%emt 0:01:23]} Rxb4 {[%emt 0:02:14]} 43. Ra7 {[%emt 0:07:32]} Ke6 {[%emt 0:11:47]} 44. Rga1 {[%emt 0:00:19]} h6 {[%emt 0:04:59]} 45. Rc7 {[%emt 0:08:44]} g5 {[%emt 0:08:38]} 46. f5+ {[%emt 0:05:49]} Kxe5 {[%emt 0:00:02]} 47. Rxf7 {[%emt 0:00:07]} Ra4 {[%emt 0:01:02]} 48. Rxa4 {[%emt 0:01:57]} bxa4 {[%emt 0:00:09]} 49. Ra7 {[%emt 0:00:05]} h5 {[%emt 0:02:28]} 50. Rxa4 {[%emt 0:06:32]} h4 {[%emt 0:00:59]} 51. f6 {[%emt 0:01:08]} Rd6 {[%emt 0:00:34]} 52. f7 {[%emt 0:00:39]} Rd8 {[%emt 0:01:07]} 53. Ra5+ {[%emt 0:00:38]} Kf4 {[%emt 0:00:25]} 54. Rf5+ {[%emt 0:00:38]} Kg3 {[%emt 0:00:04]} 55. f8=Q {[%emt 0:00:10]} Rxf8 {[%emt 0:00:04]} 56. Rxf8 {[%emt 0:00:06]} Kxh3 {[%emt 0:00:03]} 57. Kxd4 {[%emt 0:01:39]} Kxg4 {[%emt 0:00:05]} 58. Ke3 {[%emt 0:00:03]} Kg3 {[%emt 0:00:24]} 59. Ke2 {[%emt 0:00:07]} g4 {[%emt 0:00:30]} 60. Kf1 {[%emt 0:00:49]} Kh2 {[%emt 0:00:20]} 61. Rf4 {[%emt 0:00:10]} Kg3 {[%emt 0:01:42]} 62. Rc4 {[%emt 0:00:48]} h3 {[%emt 0:00:12]} 63. Kg1 {[%emt 0:00:46]} h2+ {[%emt 0:00:37]} 64. Kh1 {[%emt 0:00:05]} Kf2 {[%emt 0:00:09]} 65. Rxg4 {[%emt 0:00:06]} 1-0